fUSD/lending_fUSD_20251213
["ID","MTS","AMOUNT","RATE_DAILY","PERIOD"]
[398445630,1765658844790,1000.0,0.00015326,2]
[398445669,1765658966023,390.54090445,0.00015244,2]
[398445670,1765658966047,600.08909555,0.00015244,2]
[398445680,1765659031690,-150.0,0.00015967,2]
[398445681,1765659031700,-250.0,0.00015986,2]
[398445682,1765659031710,-144.66314133,0.00016005,2]
[398445683,1765659031722,-6.20685867,0.00016005,2]
[398445684,1765659031731,-152.8,0.00016005,2]
[398445685,1765659031741,-110.84181831,0.00016005,2]
[398445686,1765659031752,-41.69818169,0.00016005,2]
[398445687,1765659031762,-1200.0,0.0001603,2]
[398445688,1765659031771,-300.0,0.0001603,2]
[398445689,1765659031781,-61.27402081,0.0001603,2]
[398445690,1765659031792,-238.72597919,0.0001603,2]
[398445691,1765659031801,-150.0,0.00016031,2]
[398445692,1765659031811,-500.0,0.00016031,2]
[398445693,1765659031821,-150.0,0.00016031,2]
[398445694,1765659031830,-150.0,0.00016031,2]
[398445695,1765659031839,-4.01057081,0.00016031,2]
[398445696,1765659031850,-145.98942919,0.00016031,2]
[398445697,1765659031860,-152.50089421,0.00016031,2]
[398445699,1765659031871,-347.49910579,0.00016031,2]
[398445701,1765659031880,-153.80697456,0.00016031,2]
[398445703,1765659031889,-150.0,0.00016031,2]
[398445705,1765659031898,-2500.0,0.00016037,2]
[398445706,1765659031908,-152.27,0.00016054,2]
[398445707,1765659031917,-150.65,0.00016054,2]
[398445709,1765659031926,-150.06,0.00016054,2]
[398445711,1765659031935,-8693.42689749,0.00016068,2]
[398445713,1765659031947,-1468.89199616,0.00016068,2]
[398445714,1765659031956,-164.19579978,0.00016068,2]
[398445716,1765659031965,-589.57253969,0.00016068,2]
[398445717,1765659031974,-14.41319074,0.00016069,2]
[398445718,1765659031989,-474.202935,0.00016069,2]
[398445719,1765659034607,-61.38387426,0.00016069,2]
[398445720,1765659034620,-212.4604311,0.0001607,2]
[398445721,1765659034637,-1413.25471627,0.0001607,2]
[398445722,1765659034654,-601.47958321,0.0001607,2]
[398445723,1765659034689,-6612.66610416,0.0001607,2]
[398445724,1765659034707,-271.037225,0.0001607,2]
[398445725,1765659034724,-484.112775,0.0001607,2]
[398445726,1765659034743,-375.12799992,0.0001607,2]
[398445727,1765659034769,-1272.62979034,0.0001607,2]
[398445728,1765659034783,-2078.37020966,0.0001607,2]
[398445731,1765659037714,-493.17330366,0.0001607,2]
[398445732,1765659037769,-1995.53841219,0.0001607,2]
[398445733,1765659037824,-583.72879,0.0001607,2]
[398445735,1765659037931,-14833.71400003,0.0001607,2]
[398445741,1765659039790,-1477.1,0.0001607,2]
[398445742,1765659039802,-887.35059346,0.0001607,2]
[398445743,1765659039813,-3307.21390257,0.0001607,2]
[398445744,1765659039825,-292.0,0.0001607,2]
[398445746,1765659039836,-1604.53112907,0.0001607,2]
[398445747,1765659039848,-300.35996914,0.0001607,2]
[398445748,1765659039864,-8652.40124572,0.0001607,2]
[398445749,1765659039874,-1763.1466128,0.0001607,2]
[398445750,1765659039884,-918.1503251,0.0001607,2]
[398445751,1765659039894,-156.00043484,0.00016082,2]
[398445752,1765659039904,-151.0,0.00016089,2]
[398445753,1765659039915,-166.66,0.00016092,2]
[398445754,1765659039925,-500.0,0.00016136,2]
[398445755,1765659039935,-173.88300423,0.00016136,2]
[398445756,1765659039945,-150.0,0.00016137,2]
[398445757,1765659039954,-81449.59244891,0.00016137,2]
[398445758,1765659040003,-79589.53863532,0.00016137,2]
[398445759,1765659040074,-366.43374861,0.00016137,2]
[398445760,1765659040085,-335655.37064491,0.00016137,2]
[398445761,1765659040096,-38823.49043778,0.00016137,2]
[398445762,1765659040108,-53744.77740974,0.00016137,2]
[398445763,1765659040130,-1330.08239876,0.00016137,2]
[398445764,1765659040141,-6980.06561632,0.00016137,2]
[398445765,1765659040152,-252.636388,0.00016137,2]
[398445776,1765659042800,-161808.01227165,0.00016137,2]
[398445777,1765659042810,-150.0,0.00016168,2]
[398445778,1765659042821,-150.0,0.00016168,2]
[398445779,1765659042830,-500.0,0.00016168,2]
[398445780,1765659042840,-9567.28210044,0.00016182,2]
[398445781,1765659042850,-167.14674989,0.00016183,2]
[398445782,1765659042859,-941.69,0.00016227,2]
[398445783,1765659042870,-300.0,0.00016228,2]
[398445784,1765659042880,-200.0,0.00016228,2]
[398445785,1765659042890,-200.0,0.00016228,2]
[398445786,1765659042901,-151.0,0.00016228,2]
[398445787,1765659042917,-151.0,0.00016228,2]
[398445788,1765659042937,-151.0,0.00016228,2]
[398445789,1765659042951,-1000.0,0.00016228,2]
[398445790,1765659042962,-151.0,0.00016228,2]
[398445791,1765659042971,-1000.0,0.00016228,2]
[398445792,1765659042984,-151.0,0.00016228,2]
[398445793,1765659042998,-1000.0,0.00016228,2]
[398445794,1765659043007,-151.0,0.00016228,2]
[398445795,1765659043016,-1000.0,0.00016228,2]
[398445796,1765659043026,-1000.0,0.00016228,2]
[398445797,1765659043035,-200.0,0.00016228,2]
[398445798,1765659043044,-1000.0,0.00016228,2]
[398445799,1765659043055,-1000.0,0.00016228,2]
[398445800,1765659043065,-1000.0,0.00016228,2]
[398445801,1765659043076,-1000.0,0.00016228,2]
[398445802,1765659043085,-1000.0,0.00016228,2]
[398445803,1765659043094,-1000.0,0.00016228,2]
[398445804,1765659043104,-264.34080528,0.00016228,2]
[398445805,1765659043113,-500.0,0.00016228,2]
[398445806,1765659043123,-1000.0,0.00016228,2]
[398445807,1765659043132,-161.20872846,0.00016228,2]
[398445808,1765659043142,-1000.0,0.00016228,2]
[398445809,1765659043152,-995.0,0.00016228,2]
[398445810,1765659043161,-1000.0,0.00016228,2]
[398445811,1765659043171,-1000.0,0.00016228,2]
[398445812,1765659043180,-1000.0,0.00016228,2]
[398445813,1765659043190,-1000.0,0.00016228,2]
[398445814,1765659043199,-1000.0,0.00016228,2]
[398445815,1765659043209,-1000.0,0.00016228,2]
[398445816,1765659043220,-1000.0,0.00016228,2]
[398445817,1765659043229,-1000.0,0.00016228,2]
[398445818,1765659043239,-500.0,0.00016228,2]
[398445820,1765659043249,-1000.0,0.00016228,2]
[398445822,1765659043258,-330.0,0.00016228,2]
[398445823,1765659043269,-151.0,0.00016237,2]
[398445824,1765659043278,-151.0,0.00016237,2]
[398445825,1765659043287,-328.60385665,0.0001627,2]
[398445826,1765659043297,-10162.3188936,0.00016272,2]
[398445827,1765659043306,-995.0,0.00016283,2]
[398445828,1765659043315,-150.0,0.00016305,2]
[398445829,1765659043326,-150.0,0.00016305,2]
[398445830,1765659043336,-500.0,0.00016305,2]
[398445831,1765659043346,-150.0,0.00016307,2]
[398445832,1765659043356,-589.57253968,0.0001633,2]
[398445833,1765659043366,-177.40606368,0.00016337,2]
[398445834,1765659043376,-995.0,0.00016338,2]
[398445835,1765659043385,-500.0,0.00016338,2]
[398445836,1765659043395,-617.74565135,0.00016338,2]
[398445837,1765659043404,-500.0,0.00016339,2]
[398445838,1765659043413,-150.0,0.00016339,2]
[398445839,1765659043424,-150.0,0.00016339,2]
[398445840,1765659043435,-174.61575993,0.00016339,2]
[398445841,1765659043447,-500.0,0.00016339,2]
[398445842,1765659043457,-150.0,0.00016339,2]
[398445843,1765659043468,-150.60890833,0.00016339,2]
[398445844,1765659043477,-150.0,0.00016339,2]
[398445845,1765659043488,-150.0,0.00016339,2]
[398445846,1765659043498,-150.0,0.00016339,2]
[398445847,1765659043508,-500.0,0.00016339,2]
[398445848,1765659043517,-500.0,0.00016339,2]
[398445849,1765659043527,-1255.0,0.00016339,2]
[398445850,1765659043537,-500.0,0.00016339,2]
[398445851,1765659043546,-150.0,0.00016339,2]
[398445852,1765659043556,-287.24719378,0.00016339,2]
[398445853,1765659043566,-150.0,0.00016339,2]
[398445854,1765659043575,-500.0,0.00016339,2]
[398445855,1765659043584,-500.0,0.00016339,2]
[398445856,1765659043593,-150.0,0.00016339,2]
[398445857,1765659043603,-500.0,0.00016339,2]
[398445858,1765659043612,-500.0,0.00016339,2]
[398445859,1765659043621,-150.0,0.00016339,2]
[398445860,1765659043631,-150.0,0.00016339,2]
[398445861,1765659043641,-150.0,0.00016339,2]
[398445862,1765659043650,-207.05705052,0.00016339,2]
[398445863,1765659043660,-150.0,0.00016339,2]
[398445864,1765659043669,-500.0,0.00016339,2]
[398445865,1765659043678,-711.0,0.00016339,2]
[398445866,1765659043688,-975.8142,0.00016364,2]
[398445867,1765659043698,-9567.28210038,0.00016373,2]
[398445868,1765659043707,-151.0,0.00016373,2]
[398445869,1765659043717,-995.0,0.00016393,2]
[398445870,1765659043726,-500.0,0.0001641,2]
[398445871,1765659043736,-500.0,0.00016438,2]
[398445872,1765659043745,-600.0,0.00016438,2]
[398445873,1765659043755,-270.460382,0.00016438,2]
[398445874,1765659043765,-151.0,0.00016438,2]
[398445875,1765659043774,-151.0,0.00016438,2]
[398445876,1765659043784,-802.40723931,0.00016438,2]
[398445877,1765659043793,-151.0,0.00016438,2]
[398445878,1765659043803,-160.448335,0.00016438,2]
[398445879,1765659043815,-151.0,0.00016438,2]
[398445880,1765659043824,-151.0,0.00016438,2]
[398445881,1765659043835,-151.0,0.00016438,2]
[398445882,1765659043844,-152.299008,0.00016438,2]
[398445883,1765659043854,-151.0,0.00016438,2]
[398445884,1765659043864,-197.939892,0.00016438,2]
[398445885,1765659043874,-151.0,0.00016438,2]
[398445886,1765659043884,-151.0,0.00016438,2]
[398445887,1765659043893,-151.0,0.00016438,2]
[398445888,1765659043902,-151.0,0.00016438,2]
[398445889,1765659043915,-151.0,0.00016438,2]
[398445890,1765659043924,-151.0,0.00016438,2]
[398445891,1765659043934,-151.0,0.00016438,2]
[398445892,1765659043944,-151.0,0.00016438,2]
[398445893,1765659043954,-151.0,0.00016438,2]
[398445894,1765659043963,-176.54962,0.00016438,2]
[398445895,1765659043975,-172.546878,0.00016438,2]
[398445896,1765659043985,-196.693319,0.00016438,2]
[398445897,1765659043999,-196.693319,0.00016438,2]
[398445898,1765659044008,-196.693319,0.00016438,2]
[398445899,1765659044018,-151.0,0.00016438,2]
[398445900,1765659044027,-151.0,0.00016438,2]
[398445901,1765659044038,-196.693319,0.00016438,2]
[398445902,1765659044048,-150.0,0.00016442,2]
[398445903,1765659044057,-150.0,0.00016442,2]
[398445904,1765659044069,-500.0,0.00016442,2]
[398445905,1765659044079,-156.00043484,0.00016446,2]
[398445906,1765659044088,-995.0,0.00016448,2]
[398445907,1765659044097,-10162.3188936,0.00016475,2]
[398445908,1765659044108,-500.0,0.00016476,2]
[398445909,1765659044118,-150.0,0.00016476,2]
[398445910,1765659044129,-500.0,0.00016476,2]
[398445911,1765659044140,-150.0,0.00016476,2]
[398445912,1765659044151,-150.0,0.00016476,2]
[398445913,1765659044160,-150.0,0.00016476,2]
[398445914,1765659044169,-150.0,0.00016476,2]
[398445915,1765659044178,-500.0,0.00016476,2]
[398445916,1765659044188,-500.0,0.00016476,2]
[398445917,1765659044197,-1255.0,0.00016476,2]
[398445918,1765659044207,-500.0,0.00016476,2]
[398445919,1765659044216,-150.0,0.00016476,2]
[398445920,1765659044226,-150.0,0.00016476,2]
[398445921,1765659044237,-500.0,0.00016476,2]
[398445922,1765659044246,-500.0,0.00016476,2]
[398445923,1765659044256,-500.0,0.00016476,2]
[398445924,1765659044265,-150.0,0.00016476,2]
[398445925,1765659044275,-500.0,0.00016476,2]
[398445926,1765659044284,-166.39372239,0.00016476,2]
[398445927,1765659044294,-150.0,0.00016476,2]
[398445928,1765659044304,-150.0,0.00016476,2]
[398445929,1765659044313,-500.0,0.00016476,2]
[398445930,1765659044323,-703.86,0.000165,2]
[398445931,1765659044332,-941.69,0.00016501,2]
[398445932,1765659044343,-995.0,0.00016503,2]
[398445933,1765659044353,-995.0,0.00016558,2]
[398445934,1765659044362,-9567.28210038,0.00016564,2]
[398445935,1765659044372,-151.0,0.00016564,2]
[398445936,1765659044382,-196.693319,0.00016564,2]
[398445937,1765659044391,-196.693319,0.00016564,2]
[398445938,1765659044401,-196.693319,0.00016564,2]
[398445939,1765659044411,-157.109023,0.00016564,2]
[398445940,1765659044420,-196.693319,0.00016564,2]
[398445941,1765659044429,-500.0,0.00016575,2]
[398445942,1765659044440,-150.0,0.00016579,2]
[398445943,1765659044450,-150.0,0.00016579,2]
[398445944,1765659044460,-589.57253968,0.00016591,2]
[398445945,1765659044469,-995.0,0.00016613,2]
[398445946,1765659044479,-500.0,0.00016613,2]
[398445947,1765659044488,-150.0,0.00016613,2]
[398445948,1765659044497,-500.0,0.00016613,2]
[398445949,1765659044507,-150.0,0.00016613,2]
[398445950,1765659044516,-233.75403059,0.00016613,2]
[398445951,1765659044526,-254.42915281,0.00016613,2]
[398445952,1765659044535,-151.73216425,0.00016613,2]
[398445953,1765659044545,-500.0,0.00016613,2]
[398445954,1765659044555,-500.0,0.00016613,2]
[398445955,1765659044564,-1255.0,0.00016613,2]
[398445956,1765659044574,-500.0,0.00016613,2]
[398445957,1765659044584,-150.0,0.00016613,2]
[398445958,1765659044593,-500.0,0.00016613,2]
[398445959,1765659044603,-470.54059325,0.00016613,2]
[398445960,1765659044612,-500.0,0.00016613,2]
[398445961,1765659044621,-500.0,0.00016613,2]
[398445962,1765659044633,-150.0,0.00016613,2]
[398445963,1765659044643,-169.00704215,0.00016613,2]
[398445964,1765659044653,-500.0,0.00016613,2]
[398445965,1765659044663,-151.0,0.00016613,2]
[398445966,1765659044672,-151.0,0.00016613,2]
[398445967,1765659044681,-151.0,0.00016613,2]
[398445968,1765659044691,-151.0,0.00016613,2]
[398445969,1765659044700,-151.0,0.00016613,2]
[398445970,1765659044711,-151.0,0.00016613,2]
[398445971,1765659044720,-151.0,0.00016613,2]
[398445972,1765659044731,-151.0,0.00016613,2]
[398445973,1765659044741,-151.0,0.00016613,2]
[398445974,1765659044750,-151.0,0.00016613,2]
[398445975,1765659044760,-166.66,0.00016623,2]
[398445976,1765659044769,-150.0,0.00016647,2]
[398445977,1765659044779,-151.0,0.0001665,2]
[398445978,1765659044790,-151.0,0.0001665,2]
[398445979,1765659044800,-151.0,0.0001665,2]
[398445980,1765659044810,-151.0,0.0001665,2]
[398445981,1765659044819,-151.0,0.0001665,2]
[398445982,1765659044828,-154.127924,0.0001665,2]
[398445983,1765659044837,-1673.46473606,0.0001666,2]
[398445984,1765659044847,-10162.3188936,0.00016679,2]
[398445985,1765659044856,-500.0,0.00016684,2]
[398445986,1765659044867,-1000.0,0.000167,2]
[398445987,1765659044877,-151.0,0.000167,2]
[398445988,1765659044886,-191.195796,0.000167,2]
[398445989,1765659044896,-151.0,0.000167,2]
[398445990,1765659044906,-500.0,0.00016712,2]
[398445991,1765659044915,-168.27,0.00016712,2]
[398445992,1765659044925,-156.59661348,0.00016716,2]
[398445993,1765659044935,-250.0,0.00016716,2]
[398445994,1765659044945,-500.0,0.0001675,2]
[398445995,1765659044955,-251.5998615,0.0001675,2]
[398445996,1765659044965,-264.02671049,0.0001675,2]
[398445997,1765659044975,-211.93404787,0.0001675,2]
[398445998,1765659044986,-500.0,0.0001675,2]
[398445999,1765659045003,-500.0,0.0001675,2]
[398446000,1765659045013,-1255.0,0.0001675,2]
[398446001,1765659045023,-500.0,0.0001675,2]
[398446002,1765659045032,-150.0,0.0001675,2]
[398446003,1765659045042,-500.0,0.0001675,2]
[398446004,1765659045053,-500.0,0.0001675,2]
[398446005,1765659045064,-500.0,0.0001675,2]
[398446006,1765659045074,-500.0,0.0001675,2]
[398446007,1765659045085,-150.0,0.0001675,2]
[398446008,1765659045094,-9567.28210038,0.00016755,2]
[398446009,1765659045104,-151.0,0.00016755,2]
[398446010,1765659045113,-151.0,0.00016755,2]
[398446011,1765659045122,-151.0,0.00016755,2]
[398446012,1765659045131,-156.516834,0.00016755,2]
[398446013,1765659045140,-941.69,0.00016775,2]
[398446014,1765659045149,-200.0,0.00016776,2]
[398446015,1765659045160,-500.0,0.00016776,2]
[398446016,1765659045169,-1000.0,0.000168,2]
[398446017,1765659045178,-156.00043484,0.00016809,2]
[398446018,1765659045187,-345.39785189,0.00016849,2]
[398446019,1765659045197,-589.57253968,0.00016853,2]
[398446020,1765659045207,-200.0,0.00016864,2]
[398446021,1765659045217,-151.0,0.00016882,2]
[398446022,1765659045226,-196.693319,0.00016882,2]
[398446023,1765659045236,-196.693319,0.00016882,2]
[398446024,1765659045246,-196.693319,0.00016882,2]
[398446025,1765659045256,-10162.3188936,0.00016882,2]
[398446026,1765659045265,-150.0,0.00016887,2]
[398446027,1765659045275,-500.0,0.00016887,2]
[398446028,1765659045285,-500.0,0.00016887,2]
[398446029,1765659045295,-1255.0,0.00016887,2]
[398446030,1765659045304,-500.0,0.00016887,2]
[398446031,1765659045314,-150.0,0.00016887,2]
[398446032,1765659045324,-500.0,0.00016887,2]
[398446033,1765659045334,-414.43809419,0.00016887,2]
[398446034,1765659045343,-500.0,0.00016887,2]
[398446035,1765659045352,-300.0,0.00016887,2]
[398446036,1765659045362,-257.66220658,0.00016887,2]
[398446037,1765659045371,-151.0,0.000169,2]
[398446038,1765659045380,-285.891034,0.000169,2]
[398446039,1765659045393,-151.0,0.000169,2]
[398446040,1765659045403,-151.0,0.000169,2]
[398446041,1765659045412,-157.746387,0.000169,2]
[398446042,1765659045422,-151.0,0.000169,2]
[398446043,1765659045431,-151.0,0.000169,2]
[398446044,1765659045440,-245.321684,0.000169,2]
[398446045,1765659045450,-1000.0,0.000169,2]
[398446046,1765659045460,-164.19579977,0.000169,2]
[398446047,1765659045471,-378.54894233,0.00016902,2]
[398446048,1765659045481,-158.75,0.00016927,2]
[398446049,1765659045490,-7811.27464867,0.00016946,2]
[398446068,1765659047695,-151.0,0.00016438,2]
[398446069,1765659047705,-151.0,0.00016438,2]
[398446070,1765659047715,-151.0,0.00016613,2]
[398446071,1765659047725,-151.0,0.00016613,2]
[398446072,1765659047735,-196.693319,0.00016882,2]
[398446073,1765659047745,-1756.00745171,0.00016946,2]
[398446074,1765659047755,-2000.0,0.00016948,2]
[398446075,1765659047766,-571.126,0.00016948,2]
[398446076,1765659047777,-1000.0,0.00016948,2]
[398446077,1765659047787,-305.388,0.00016948,2]
[398446078,1765659047796,-500.0,0.00016958,2]
[398446079,1765659047808,-500.0,0.00016973,2]
[398446080,1765659047818,-500.0,0.00016973,2]
[398446081,1765659047829,-500.0,0.00016973,2]
[398446082,1765659047838,-151.0,0.00016986,2]
[398446083,1765659047849,-151.0,0.00016986,2]
[398446084,1765659047860,-151.0,0.00016986,2]
[398446085,1765659047870,-151.0,0.00016986,2]
[398446086,1765659047880,-189.618203,0.00016986,2]
[398446087,1765659047890,-500.0,0.00016986,2]
[398446088,1765659047900,-151.0,0.00016986,2]
[398446089,1765659047910,-151.0,0.00016986,2]
[398446090,1765659047920,-151.0,0.00016986,2]
[398446091,1765659047929,-151.0,0.00016986,2]
[398446092,1765659047940,-151.0,0.00016986,2]
[398446093,1765659047949,-151.0,0.00016986,2]
[398446094,1765659047959,-151.0,0.00016986,2]
[398446095,1765659047968,-151.0,0.00016986,2]
[398446096,1765659047979,-151.0,0.00016986,2]
[398446097,1765659047989,-151.0,0.00016986,2]
[398446098,1765659048001,-151.0,0.00016986,2]
[398446099,1765659048010,-151.0,0.00016986,2]
[398446100,1765659048019,-151.0,0.00016986,2]
[398446101,1765659048029,-151.0,0.00016986,2]
[398446102,1765659048040,-628.35,0.00016986,2]
[398446103,1765659048050,-19046.1,0.00016986,2]
[398446104,1765659048059,-150.0,0.00016986,2]
[398446105,1765659048070,-297.07242673,0.00016986,2]
[398446106,1765659048079,-150.0,0.00016986,2]
[398446107,1765659048089,-151.0,0.0001699,2]
[398446108,1765659048098,-2848.85859697,0.00017,2]
[398446109,1765659048110,-1746.80500616,0.00017,2]
[398446110,1765659048133,-1956.33639687,0.00017,2]
[398446111,1765659048142,-5065.50956673,0.00017,3]
[398446112,1765659048152,-21821.33973169,0.00017,2]
[398446113,1765659048166,-652.03613473,0.00017,2]
[398446114,1765659048177,-344.42140071,0.00017,2]
[398446117,1765659270924,166.66,0.00014915,2]
[398446118,1765659271140,166.66,0.00015229,2]
[398446119,1765659271344,166.66,0.00015543,2]
[398446120,1765659271560,166.66,0.00015857,2]
[398446121,1765659301020,1703.33,0.0001566,2]
[398446124,1765659528947,200.0,0.00015349,2]
[398446125,1765659609302,498.02,0.00015319,2]
[398446127,1765659645487,1237.08,0.00015276,2]
[398446129,1765659735385,655.74505377,0.000175,30]
[398446130,1765659738489,800.0,0.000175,30]
[398446131,1765659738839,763.24172106,0.000175,30]
[398446132,1765659741781,949.6465707,0.000175,30]
[398446133,1765659747207,857.11836138,0.000175,30]
[398446134,1765659747258,618.11906196,0.000175,30]
[398446138,1765659782610,160.61,0.00015267,2]
[398446139,1765659813693,309.15,0.00015246,2]
[398446142,1765659906608,150.0,0.00015288,2]
[398446143,1765659906839,150.0,0.00015288,2]
[398446144,1765659906987,150.0,0.00015288,2]
[398446145,1765659907018,150.0,0.0001553,2]
[398446146,1765659907082,150.0,0.00015773,2]
[398446147,1765659913178,150.0,0.00015288,2]
[398446148,1765659913220,150.0,0.00015712,2]
[398446149,1765659915813,150.0,0.00015288,2]
[398446150,1765659915851,150.0,0.00015288,2]
[398446151,1765659917098,150.0,0.00015288,2]
[398446152,1765659919743,150.0,0.00015288,2]
[398446153,1765659925300,150.0,0.00015288,2]
[398446154,1765659927711,150.0,0.00015288,2]
[398446155,1765659928877,150.0,0.00015288,2]
[398446156,1765659928936,150.0,0.00015288,2]
[398446158,1765660017871,635.35,0.00013699,2]
[398446246,1765660176809,161.34,7.759e-05,2]
[398446247,1765660176843,161.34,9.052e-05,2]
[398446248,1765660177040,161.34,0.00010346,2]
[398446249,1765660177233,161.34,0.00011639,2]
[398446250,1765660177436,161.34,0.00012932,2]
[398446251,1765660177640,161.34,0.00014225,2]
[398446252,1765660177838,161.34,0.00015518,2]
[398446253,1765660231859,-356.2584437,0.000159,2]
[398446254,1765660231869,-300.0,0.00015933,2]
[398446255,1765660231879,-5.16561213,0.00015933,2]
[398446256,1765660231890,-294.83438787,0.00015933,2]
[398446257,1765660231900,-1200.0,0.00015933,2]
[398446258,1765660231910,-250.0,0.00015934,2]
[398446259,1765660231920,-4540.27083477,0.00015934,2]
[398446260,1765660231932,-877.63502193,0.00015934,2]
[398446261,1765660231944,-14434.23077426,0.00015934,2]
[398446262,1765660231956,-1288.12252,0.00015934,2]
[398446263,1765660231977,-346.84803172,0.00015934,2]
[398446264,1765660231989,-1238.93284746,0.00015934,2]
[398446265,1765660232001,-56841.10979263,0.00015934,2]
[398446266,1765660232013,-2740.89999996,0.00015934,2]
[398446267,1765660232025,-344.17171453,0.00015934,2]
[398446268,1765660232037,-301.0,0.00015934,2]
[398446269,1765660232049,-480.71,0.00015934,2]
[398446270,1765660232065,-1268.999991,0.00015934,2]
[398446271,1765660232077,-964.74,0.00015934,2]
[398446272,1765660232089,-1060.77904205,0.00015934,2]
[398446274,1765660232101,-556.64674786,0.00015934,2]
[398446276,1765660232113,-33573.69828183,0.00015934,2]
[398446277,1765660232124,-250.0,0.00015936,2]
[398446278,1765660232135,-1200.0,0.00015936,2]
[398446279,1765660232146,-300.0,0.00015936,2]
[398446281,1765660232156,-579.83462288,0.00015937,2]
[398446283,1765660232168,-4501.32482392,0.00015937,2]
[398446285,1765660232178,-2500.0,0.00015937,2]
[398446287,1765660232188,-1078.02239972,0.00016005,2]
[398446288,1765660232200,-1963.19260028,0.00016005,2]
[398446289,1765660232210,-172.214,0.00016005,2]
[398446290,1765660232220,-150.0,0.00016016,2]
[398446291,1765660232230,-500.0,0.00016028,2]
[398446292,1765660232240,-500.0,0.00016028,2]
[398446293,1765660232251,-500.0,0.00016028,2]
[398446294,1765660232262,-500.0,0.00016028,2]
[398446295,1765660232271,-500.0,0.00016028,2]
[398446296,1765660232281,-500.0,0.00016028,2]
[398446297,1765660232290,-500.0,0.00016028,2]
[398446298,1765660232304,-200.0,0.00016028,2]
[398446299,1765660232315,-151.0,0.00016028,2]
[398446300,1765660232325,-151.0,0.00016028,2]
[398446301,1765660232336,-151.0,0.00016028,2]
[398446302,1765660232345,-151.0,0.00016028,2]
[398446303,1765660232355,-151.0,0.00016028,2]
[398446304,1765660232365,-151.0,0.00016028,2]
[398446305,1765660232375,-151.0,0.00016028,2]
[398446306,1765660232385,-151.0,0.00016028,2]
[398446307,1765660232394,-151.0,0.00016028,2]
[398446308,1765660232404,-1176.66820175,0.00016028,2]
[398446309,1765660232414,-1176.66820174,0.00016028,2]
[398446310,1765660232424,-500.0,0.00016029,2]
[398446311,1765660232433,-500.0,0.00016029,2]
[398446312,1765660232443,-364.95989009,0.00016029,2]
[398446313,1765660232453,-684.03103583,0.00016029,2]
[398446314,1765660232463,-684.03103583,0.00016029,2]
[398446315,1765660232474,-684.03103583,0.00016029,2]
[398446316,1765660232483,-684.03103583,0.00016029,2]
[398446317,1765660232493,-684.03103583,0.00016029,2]
[398446318,1765660232503,-684.03103583,0.00016029,2]
[398446319,1765660232513,-684.03103583,0.00016029,2]
[398446320,1765660232523,-684.03103583,0.00016029,2]
[398446321,1765660232533,-614.85890845,0.00016029,2]
[398446323,1765660237917,-69.17212738,0.00016029,2]
[398446324,1765660237928,-440.83859242,0.00016029,2]
[398446325,1765660237974,-243.19244341,0.00016029,2]
[398446326,1765660237984,-684.03103583,0.00016029,2]
[398446327,1765660237993,-684.03103583,0.00016029,2]
[398446328,1765660238003,-684.03103583,0.00016029,2]
[398446329,1765660238013,-684.03103583,0.00016029,2]